fUST/lending_fUST_20251014
["ID","MTS","AMOUNT","RATE_DAILY","PERIOD"]
[391235916,1760423440612,-462837.455166,0.000249,2]
[391235918,1760423440621,-177.55947471,0.00025012,2]
[391235920,1760423440630,-354.473,0.00025112,9]
[391235922,1760423440639,-4814.1,0.00025185,2]
[391235924,1760423440648,-447.44655504,0.00025203,7]
[391235926,1760423440657,-375.0,0.00025204,2]
[391235928,1760423440666,-429.6921645,0.00025421,2]
[391235930,1760423440675,-503.09828403,0.00025421,2]
[391235932,1760423440684,-630.46605884,0.00025421,2]
[391235934,1760423440693,-1000.0,0.00025421,2]
[391235936,1760423440702,-397.5,0.00025804,2]
[391235938,1760423440712,-219.0,0.00025863,18]
[391235940,1760423440721,-502.41453798,0.00025968,2]
[391235942,1760423440730,-101145.77656858,0.00026,30]
[391235944,1760423440739,-8496.35,0.00026027,2]
[391235946,1760423440749,-5776.92,0.00026193,2]
[391235947,1760423440758,-1000.0,0.00026245,4]
[391235948,1760423440768,-420.0,0.00026404,2]
[391235950,1760423440778,-1019.07622,0.00026676,2]
[391235952,1760423440787,-1000.0,0.00026871,30]
[391235954,1760423440795,-442.5,0.00027004,2]
[391235956,1760423440803,-6739.74,0.000272,2]
[391235958,1760423440812,-809.0,0.00027374,2]
[391235960,1760423440820,-8496.35,0.00027397,4]
[391235962,1760423440828,-3239.11,0.000274,2]
[391235964,1760423440837,-40467.19,0.000274,7]
[391235966,1760423440846,-5633.24,0.000274,2]
[391235968,1760423440855,-178.0,0.00027507,25]
[391235970,1760423440865,-802.0,0.00027522,2]
[391235972,1760423440873,-802.0,0.00027638,2]
[391235974,1760423440882,-809.0,0.00027687,7]
[391235976,1760423440891,-802.0,0.00027741,2]
[391235978,1760423440899,-802.0,0.00027845,2]
[391235980,1760423440908,-802.0,0.00027886,2]
[391235981,1760423440917,-802.0,0.00027962,2]
[391235983,1760423440925,-2473.25766201,0.00028,60]
[391235985,1760423440934,-802.0,0.00028076,2]
[391235987,1760423440943,-802.0,0.00028189,2]
[391235989,1760423440952,-7702.56,0.00028207,2]
[391235991,1760423440960,-802.0,0.0002825,2]
[391235993,1760423440971,-500.0,0.00028267,5]
[391235994,1760423440978,-981.0,0.00028392,2]
[391235995,1760423440989,-2161.0,0.00028392,2]
[391235996,1760423440998,-631.0,0.00028392,2]
[391235997,1760423441007,-411.0,0.00028392,2]
[391235998,1760423441016,-418.168,0.00028392,2]
[391235999,1760423441028,-802.0,0.00028526,2]
[391236000,1760423441038,-1000.0,0.0002857,5]
[391236001,1760423441047,-155.0,0.00028603,30]
[391236002,1760423441056,-802.0,0.00028733,2]
[391236003,1760423441067,-521.37491996,0.0002876,2]
[391236004,1760423441076,-8496.35,0.00028767,6]
[391236005,1760423441085,-149136.66166159,0.000288,30]
[391236006,1760423441094,-503.92937964,0.00028815,5]
[391236007,1760423441103,-802.0,0.00028818,2]
[391236008,1760423441112,-802.0,0.00028896,2]
[391236009,1760423441122,-802.0,0.00028918,7]
[391236010,1760423441133,-802.0,0.00028958,2]
[391236011,1760423441142,-203.0,0.0002896,22]
[391236012,1760423441150,-802.0,0.00028967,2]
[391236013,1760423441159,-802.0,0.00028996,2]
[391236014,1760423441169,-1000.01,0.00029,2]
[391236015,1760423441178,-200.25802931,0.00029,120]
[391236016,1760423441187,-700.0,0.00029078,7]
[391236017,1760423441196,-1000.01,0.00029174,2]
[391236018,1760423441206,-8665.38,0.00029215,2]
[391236019,1760423441215,-802.0,0.00029232,2]
[391236020,1760423441224,-200.3671795,0.0002936,5]
[391236021,1760423441233,-802.0,0.00029413,2]
[391236022,1760423441242,-1532.38206024,0.00029432,2]
[391236023,1760423441252,-6207.16680504,0.00029486,2]
[391236024,1760423441261,-5633.24,0.000295,2]
[391236025,1760423441270,-600.0,0.00029548,2]
[391236026,1760423441282,-1000.0,0.00029559,30]
[391236027,1760423441292,-244.0,0.00029559,30]
[391236028,1760423441302,-95000.0,0.0002956,2]
[391236029,1760423441312,-802.0,0.00029586,2]
[391236030,1760423441321,-802.0,0.0002959,2]
[391236031,1760423441331,-30000.0,0.000296,3]
[391236032,1760423441340,-197.0,0.00029699,36]
[391236033,1760423441350,-1625.489778,0.000297,4]
[391236034,1760423441359,-802.0,0.00029777,2]
[391236035,1760423441368,-596.45739549,0.00029785,2]
[391236036,1760423441378,-154.904952,0.00029796,2]
[391236037,1760423441387,-40467.19,0.000298,7]
[391236038,1760423441396,-802.0,0.00029852,2]
[391236039,1760423441405,-600.0,0.00029856,2]
[391236040,1760423441414,-700.0,0.000299,7]
[391236041,1760423441423,-500.0,0.0002991,5]
[391236042,1760423441433,-351.1328775,0.0003,15]
[391236043,1760423441442,-273.6205,0.0003,2]
[391236044,1760423441452,-273.6205,0.0003,2]
[391236045,1760423441461,-2546.56826755,0.0003,2]
[391236046,1760423441470,-790.35504747,0.0003,2]
[391236047,1760423441479,-7284.07544672,0.0003,2]
[391236048,1760423441488,-7114.23578319,0.0003,30]
[391236049,1760423441497,-1370464.43944855,0.0003,9]
[391236050,1760423441551,-361671.42338148,0.0003,9]
[391236051,1760423441560,-525.10596981,0.0003,2]
[391236052,1760423441570,-152873.29644372,0.000301,3]
[391236053,1760423441579,-500.0,0.0003011,5]
[391236054,1760423441588,-834.71302304,0.0003012,7]
[391236055,1760423441597,-400.0,0.00030136,120]
[391236056,1760423441606,-8496.35,0.00030136,8]
[391236057,1760423441615,-600.0,0.00030163,2]
[391236058,1760423441624,-157.955985,0.00030199,8]
[391236059,1760423441633,-154.904952,0.00030199,8]
[391236060,1760423441642,-1500.0,0.000302,4]
[391236061,1760423441651,-9628.19,0.00030222,2]
[391236062,1760423441661,-2203.936,0.00030222,2]
[391236063,1760423441670,-500.933,0.00030222,7]
[391236064,1760423441679,-325.93798739,0.00030226,2]
[391236065,1760423441688,-400.0,0.00030273,120]
[391236066,1760423441697,-294.094483,0.00030324,30]
[391236067,1760423441706,-163.174092,0.00030324,30]
[391236068,1760423441716,-243.36953757,0.00030325,10]
[391236069,1760423441726,-1374223.6167,0.00030325,2]
[391236070,1760423441735,-151.0,0.00030326,30]
[391236071,1760423441745,-22541.24321087,0.0003034,2]
[391236072,1760423441755,-160.0,0.000304,30]
[391236073,1760423441764,-400.0,0.0003041,120]
[391236074,1760423441775,-600.0,0.00030471,2]
[391236075,1760423441785,-250.0,0.000305,7]
[391236076,1760423441793,-165.6,0.000305,7]
[391236077,1760423441802,-500.0,0.0003051,30]
[391236078,1760423441812,-463429.9507114,0.00030525,7]
[391236079,1760423441823,-7838.46491918,0.00030525,7]
[391236080,1760423441839,-500.0,0.00019204,2]
[391236081,1760423441848,-3884.01355428,0.00030525,7]
[391236082,1760423441859,-2889.08104953,0.00030525,7]
[391236083,1760423441870,-874.54482971,0.00030525,7]
[391236084,1760423441885,-500.0,0.00019204,2]
[391236085,1760423441894,-130.04,0.00030525,7]
[391236086,1760423442357,-3e-08,0.00019204,2]
[391236087,1760423442454,518.22,0.00019197,3]
[391236096,1760423443286,-488.14538573,0.00019204,2]
[391236100,1760423446231,-11.85461424,0.00019204,2]
[391236101,1760423446242,-250.02261976,0.00019204,2]
[391236102,1760423446326,-249.97738024,0.00019204,2]
[391236103,1760423446336,-500.0,0.00019204,2]
[391236104,1760423446346,-500.0,0.00019204,2]
[391236105,1760423446355,-500.0,0.00019204,2]
[391236106,1760423446365,-501.15424866,0.00019204,2]
[391236107,1760423446374,-260.41251393,0.00019204,2]
[391236108,1760423446383,-500.0,0.00019204,2]
[391236109,1760423446393,-500.0,0.00019204,2]
[391236110,1760423446403,-500.0,0.00019204,2]
[391236111,1760423446412,-500.0,0.00019204,2]
[391236112,1760423446421,-504.05576003,0.00019204,2]
[391236113,1760423446430,-500.0,0.00019204,2]
[391236114,1760423446440,-500.0,0.00019204,2]
[391236115,1760423446449,-500.0,0.00019204,2]
[391236116,1760423446459,-500.0,0.00019204,2]
[391236117,1760423446468,-500.0,0.00019204,2]
[391236118,1760423446482,-500.0,0.00019204,2]
[391236119,1760423446492,-500.0,0.00019204,2]
[391236120,1760423446501,-500.0,0.00019204,2]
[391236121,1760423446510,-457.83030826,0.00019204,2]
[391236122,1760423446521,-267.46195829,0.00019206,2]
[391236123,1760423446531,-9169.16,0.00030515,10]
[391236124,1760423446541,-5682.6058274,0.00030525,7]
[391236125,1760423493121,151.0,0.00030625,60]
[391236126,1760423504055,9481.79,0.00019105,2]
[391236127,1760423504127,10000.01,0.00019105,2]
[391236128,1760423504199,10000.01,0.00019105,2]
[391236130,1760423569377,-365.66607259,0.00018904,2]
[391236131,1760423572204,-184.28583924,0.00018904,2]
[391236132,1760423580428,-4450.04808817,0.00018904,2]
[391236133,1760423589845,1099.91382366,0.00018904,2]
[391236134,1760423589913,2900.09617634,0.00018904,2]
[391236135,1760423599942,-179.08,0.00019095,3]
[391236136,1760423599970,-205.61,0.00019095,3]
[391236137,1760423599993,-236.62506592,0.00019095,3]
[391236139,1760423611813,166.84448562,0.00019004,2]
[391236142,1760423618700,167.734732,9.086e-05,2]
[391236143,1760423618842,167.734732,0.00018173,2]
[391236145,1760423630795,9497.69605038,0.00018318,2]
[391236146,1760423630849,10000.01,0.00018318,2]
[391236147,1760423630902,10000.01,0.00018318,2]
[391236148,1760423630964,10000.01,0.00018318,2]
[391236149,1760423631027,6339.29177052,0.00018318,2]
[391236153,1760423690287,-380.20493408,0.00019095,3]
[391236154,1760423690310,-37.10514685,0.00019104,2]
[391236160,1760423794404,-235.6327214,0.00019103,2]
[391236161,1760423796962,-64.3672786,0.00019103,2]
[391236162,1760423796984,-185.56871524,0.00019104,2]
[391236163,1760423797008,-28.31438208,0.00019104,2]
[391236164,1760423800230,-156.93489557,0.00019104,2]
[391236165,1760423802718,-151.50331754,0.00019104,2]
[391236166,1760423802740,-0.19933453,0.00019104,2]
[391236167,1760423805715,-279.7814895,0.00019104,2]
[391236168,1760423809008,-220.01917597,0.00019104,2]
[391236169,1760423809032,-59.76231353,0.00019104,2]
[391236170,1760423812180,-159.28547763,0.00019104,2]
[391236171,1760423814352,-221.26682857,0.00019104,2]
[391236172,1760423816046,-435.88388098,0.00019104,2]
[391236173,1760423819692,-207.65095335,0.00019104,2]
[391236174,1760423834200,510.52843417,0.00027397,120]
[391236175,1760423839376,-116.15054594,0.00019104,2]
[391236176,1760423839401,-119.11255462,0.00019104,2]
[391236181,1760423988822,184.70179692,0.00019078,2]
[391236182,1760424051516,151.0,0.00017,2]
[391236184,1760424260014,-257.34521277,0.00019095,3]
[391236185,1760424261532,-152.88688551,0.00019095,3]
[391236186,1760424304365,-359.14790172,0.00019095,3]
[391236187,1760424304388,-96.12991312,0.00019102,2]
[391236188,1760424306580,42638.11,0.0003058,90]
[391236189,1760424325107,184.70179692,0.00019005,2]
[391236435,1760424417572,151.0,0.00017,2]
[391236436,1760424418320,151.0,0.00018999,2]
[391236475,1760424461528,153.63849354,0.00018,3]
[391236478,1760424465334,689.249611,0.00018173,2]
[391236479,1760424499947,-296.97777975,0.00019102,2]
[391236480,1760424502151,-151.35,0.00019102,2]
[391236481,1760424506463,-157.75244894,0.00019102,2]
[391236482,1760424508578,-367.79421095,0.00019102,2]
[391236657,1760424637211,-150.0,0.00019102,2]
[391236658,1760424637220,-300.0,0.00019103,2]
[391236659,1760424637230,-129.81126369,0.00019103,2]
[391236660,1760424637242,-170.18873631,0.00019103,2]
[391236661,1760424637251,-300.0,0.00019103,2]
[391236662,1760424637260,-300.0,0.00019103,2]
[391236663,1760424637269,-195.0,0.00019103,2]
[391236664,1760424637279,-1200.0,0.00019103,2]
[391236665,1760424637288,-459.67006019,0.00019103,2]
[391236666,1760424637298,-155.87170347,0.00019104,2]
[391236669,1760424637308,-235.72681663,0.00019104,2]
[391236673,1760424637318,-581.44550883,0.00019104,2]
[391236675,1760424637331,-7570.69717428,0.00019104,2]
[391236679,1760424637342,-2128.21998276,0.00019104,2]
[391236682,1760424637354,-5601.67571982,0.00019104,2]
[391236716,1760424638312,-1287.13368642,0.00019104,2]
[391236719,1760424638325,-23565.23488381,0.00019104,2]
[391236721,1760424638337,-8781.3058317,0.00019104,2]
[391236722,1760424638349,-1065.73272121,0.00019104,2]
[391236724,1760424638359,-13243.7014959,0.00019105,2]
[391236726,1760424638370,-296207.14682225,0.00019105,2]
[391236727,1760424638864,-750.0,0.00019105,2]
[391236728,1760424638875,-4149.58334033,0.00019105,2]
[391236729,1760424638886,-13172.42,0.00019105,2]
[391236730,1760424638896,-12995.33834152,0.00019105,2]
[391236731,1760424638905,-307.01488632,0.00019178,2]
[391236732,1760424638913,-500.0,0.00019178,2]
[391236733,1760424638922,-500.0,0.00019178,2]
[391236734,1760424638932,-500.0,0.00019178,2]
[391236735,1760424638941,-500.0,0.00019178,2]
[391236736,1760424638951,-500.0,0.00019178,2]
[391236737,1760424638961,-500.0,0.00019178,2]
[391236738,1760424638970,-500.0,0.00019178,2]
[391236739,1760424638980,-500.0,0.00019178,2]
[391236740,1760424638989,-500.0,0.00019178,2]
[391236741,1760424638999,-500.0,0.00019178,2]
[391236742,1760424639008,-500.0,0.00019178,2]
[391236743,1760424639018,-500.0,0.00019178,2]
[391236744,1760424639027,-500.0,0.00019178,2]
[391236745,1760424639037,-500.0,0.00019178,2]
[391236746,1760424639047,-502.57703135,0.00019178,2]
[391236747,1760424639061,-500.0,0.00019178,2]
[391236748,1760424639071,-500.0,0.00019178,2]
[391236749,1760424639081,-500.0,0.00019178,2]
[391236750,1760424639090,-500.0,0.00019178,2]
[391236751,1760424639100,-500.0,0.00019178,2]
[391236752,1760424639109,-500.0,0.00019178,2]
[391236753,1760424639119,-500.0,0.00019178,2]
[391236754,1760424639128,-500.0,0.00019178,2]
[391236755,1760424639138,-500.0,0.00019178,2]
[391236756,1760424639147,-500.0,0.00019178,2]
[391236757,1760424639157,-500.0,0.00019178,2]
[391236758,1760424639166,-500.0,0.00019178,2]
[391236759,1760424639175,-500.0,0.00019178,2]
[391236760,1760424639185,-1362.97,0.00019178,2]
[391236761,1760424639194,-1362.97,0.00019178,2]
[391236762,1760424639204,-1306.18,0.00019178,2]
[391236763,1760424639213,-1362.97,0.00019178,2]
[391236764,1760424639222,-1306.18,0.00019178,2]
[391236765,1760424639232,-1362.97,0.00019178,2]
[391236766,1760424639241,-1362.97,0.00019178,2]
[391236767,1760424639251,-1306.18,0.00019178,2]
[391236768,1760424639261,-1362.97,0.00019178,2]
[391236769,1760424639270,-1306.18,0.00019178,2]
[391236770,1760424639280,-1362.97,0.00019178,2]
[391236771,1760424639290,-1306.18,0.00019178,2]
[391236772,1760424639303,-1362.97,0.00019178,2]
[391236773,1760424639313,-1306.18,0.00019178,2]
[391236774,1760424639326,-1362.97,0.00019178,2]
[391236775,1760424639335,-1306.18,0.00019178,2]
[391236776,1760424639344,-1362.97,0.00019178,2]
[391236777,1760424639354,-1306.18,0.00019178,2]
[391236778,1760424639365,-1362.97,0.00019178,2]
[391236779,1760424639374,-1306.18,0.00019178,2]
[391236780,1760424639383,-1363.13137658,0.00019178,2]
[391236781,1760424639392,-1306.18,0.00019178,2]
[391236782,1760424639404,-1306.18,0.00019178,2]
[391236783,1760424639414,-1306.18,0.00019178,2]
[391236784,1760424639424,-540.50205466,0.00019178,2]
[391236785,1760424639433,-500.0,0.00019178,2]
[391236786,1760424639442,-503.61261678,0.00019178,2]
[391236787,1760424639452,-500.0,0.00019178,2]
[391236788,1760424639468,-205.72267147,0.00019178,2]
[391236789,1760424639480,-500.0,0.00019178,2]
[391236790,1760424639490,-500.0,0.00019178,2]
[391236791,1760424639500,-500.0,0.00019178,2]
[391236792,1760424639511,-500.0,0.00019178,2]
[391236793,1760424639521,-500.0,0.00019178,2]
[391236794,1760424639531,-500.0,0.00019178,2]
[391236795,1760424639541,-500.0,0.00019178,2]
[391236796,1760424639554,-182.81032739,0.00019178,2]
[391236797,1760424639564,-500.0,0.00019178,2]
[391236798,1760424639574,-500.0,0.00019178,2]
[391236799,1760424639584,-513.36129471,0.00019178,2]
[391236800,1760424639593,-500.0,0.00019178,2]
[391236801,1760424639604,-521.93674818,0.00019178,2]
[391236802,1760424639615,-500.0,0.00019178,2]
[391236803,1760424639625,-500.0,0.00019178,2]
[391236804,1760424639636,-500.0,0.00019178,2]
[391236805,1760424639646,-500.0,0.00019178,2]
[391236806,1760424639656,-500.0,0.00019178,2]
[391236807,1760424639666,-500.0,0.00019178,2]
[391236808,1760424639676,-500.0,0.00019178,2]
[391236809,1760424639686,-500.0,0.00019178,2]
[391236810,1760424639696,-500.0,0.00019178,2]
[391236811,1760424639706,-500.0,0.00019178,2]
[391236812,1760424639715,-500.0,0.00019178,2]
[391236813,1760424639725,-500.0,0.00019178,2]
[391236814,1760424639735,-500.0,0.00019178,2]
[391236815,1760424639746,-500.0,0.00019178,2]
[391236816,1760424639756,-500.0,0.00019178,2]
[391236817,1760424639766,-500.0,0.00019178,2]
[391236818,1760424639776,-500.0,0.00019178,2]
[391236819,1760424639786,-500.0,0.00019178,2]
[391236820,1760424639795,-500.0,0.00019178,2]
[391236821,1760424639808,-500.0,0.00019178,2]
[391236823,1760424639818,-504.67849272,0.00019178,2]
[391236824,1760424639828,-500.0,0.00019178,2]
[391236825,1760424639838,-500.0,0.00019178,2]
[391236826,1760424639847,-500.0,0.00019178,2]
[391236827,1760424639857,-500.0,0.00019178,2]
[391236828,1760424639866,-500.0,0.00019178,2]
[391236829,1760424639876,-500.0,0.00019178,2]
[391236830,1760424639885,-500.0,0.00019178,2]
[391236833,1760424639894,-500.0,0.00019178,2]
[391236837,1760424639903,-500.0,0.00019178,2]
[391236840,1760424639912,-500.0,0.00019178,2]
[391236844,1760424639922,-500.0,0.00019178,2]
[391236846,1760424639931,-500.0,0.00019178,2]
[391236848,1760424639940,-235.06884735,0.00019178,2]
[391236851,1760424639949,-500.0,0.00019178,2]
[391236853,1760424639959,-500.0,0.00019178,2]
[391236856,1760424639969,-500.0,0.00019178,2]
[391236857,1760424639979,-500.0,0.00019178,2]
[391236858,1760424639989,-500.0,0.00019178,2]
[391236859,1760424639998,-500.0,0.00019178,2]
[391236860,1760424640008,-500.0,0.00019178,2]
[391236861,1760424640018,-500.0,0.00019178,2]
[391236863,1760424640028,-500.0,0.00019178,2]
[391236865,1760424640037,-500.0,0.00019178,2]
[391236867,1760424640047,-500.0,0.00019178,2]
[391236868,1760424640060,-500.0,0.00019178,2]
[391236870,1760424640070,-500.0,0.00019178,2]
[391236871,1760424640080,-500.0,0.00019178,2]
[391236872,1760424640089,-500.0,0.00019178,2]
[391236873,1760424640098,-500.0,0.00019178,2]
[391236874,1760424640108,-500.0,0.00019178,2]
[391236875,1760424640117,-500.0,0.00019178,2]
[391236876,1760424640129,-575.68,0.00019178,2]
[391236877,1760424640139,-500.0,0.00019178,2]
[391236878,1760424640150,-500.0,0.00019178,2]
[391236879,1760424640161,-500.0,0.00019178,2]
[391236880,1760424640170,-500.0,0.00019178,2]
[391236881,1760424640179,-500.0,0.00019178,2]
[391236882,1760424640189,-319.33404836,0.00019178,2]
[391236883,1760424640198,-500.0,0.00019178,2]
[391236885,1760424640207,-235.26310056,0.00019178,2]
[391236887,1760424640217,-500.0,0.00019178,2]
[391236889,1760424640227,-500.0,0.00019178,2]
[391236891,1760424640236,-583.21933772,0.00019178,2]
[391236893,1760424640246,-500.0,0.00019178,2]
[391236895,1760424640255,-207.52,0.00019178,2]
[391236897,1760424640266,-500.0,0.00019178,2]
[391236899,1760424640275,-500.0,0.00019178,2]
[391236901,1760424640285,-500.0,0.00019178,2]
[391236903,1760424640294,-271.99688937,0.00019178,2]
[391236905,1760424640307,-500.63317438,0.00019204,2]
[391236907,1760424640317,-503.42673383,0.00019204,2]
[391236909,1760424640332,-500.0,0.00019204,2]
[391236911,1760424640342,-478.83904082,0.00019204,2]
[391236914,1760424640352,-500.0,0.00019204,2]
[391236915,1760424640362,-500.0,0.00019204,2]
[391236918,1760424640371,-500.0,0.00019204,2]
[391236919,1760424640381,-500.0,0.00019204,2]
[391236921,1760424640392,-514.32983106,0.00019204,2]
[391236923,1760424640403,-501.05859669,0.00019204,2]
[391236925,1760424640413,-500.0,0.00019204,2]
[391236927,1760424640423,-500.0,0.00019204,2]
[391236929,1760424640433,-512.83254179,0.00019204,2]
[391236931,1760424640442,-500.0,0.00019204,2]
[391236933,1760424640451,-500.0,0.00019204,2]
[391236935,1760424640461,-500.0,0.00019204,2]
[391236937,1760424640470,-500.0,0.00019204,2]
[391236939,1760424640479,-500.0,0.00019204,2]
[391236941,1760424640488,-500.0,0.00019204,2]
[391236943,1760424640497,-500.0,0.00019204,2]
[391236945,1760424640507,-500.0,0.00019204,2]
[391236948,1760424640519,-205.58160833,0.00019204,2]
[391236949,1760424640527,-577.75414975,0.00019204,2]
[391236951,1760424640537,-505.94240969,0.00019204,2]
[391236953,1760424640546,-500.0,0.00019204,2]
[391236955,1760424640557,-572.55023243,0.00019204,2]
[391236957,1760424640566,-500.0,0.00019204,2]
[391236959,1760424640576,-500.0,0.00019204,2]
[391236961,1760424640586,-500.0,0.00019204,2]
[391236963,1760424640597,-464.03578473,0.00019204,2]
[391236965,1760424640607,-500.0,0.00019204,2]
[391236967,1760424640617,-500.0,0.00019204,2]
[391236969,1760424640627,-500.0,0.00019204,2]
[391236971,1760424640636,-500.0,0.00019204,2]
[391236973,1760424640645,-500.0,0.00019204,2]
[391236975,1760424640654,-500.0,0.00019204,2]
[391236977,1760424640663,-500.0,0.00019204,2]
[391236979,1760424640673,-487.38563957,0.00019204,2]
[391236981,1760424640682,-500.0,0.00019204,2]
[391236983,1760424640692,-500.0,0.00019206,2]
[391236985,1760424640701,-500.0,0.00019206,2]
[391236987,1760424640710,-500.0,0.00019206,2]
[391236989,1760424640719,-500.0,0.00019206,2]
[391236991,1760424640729,-500.0,0.00019206,2]
[391236993,1760424640739,-500.0,0.00019206,2]
[391236995,1760424640748,-500.0,0.00019206,2]
[391236997,1760424640757,-500.0,0.00019206,2]
[391236999,1760424640766,-500.0,0.00019206,2]
[391237001,1760424640776,-500.0,0.00019206,2]
[391237002,1760424640785,-500.0,0.00019206,2]
[391237005,1760424640795,-500.0,0.00019206,2]
[391237006,1760424640807,-500.0,0.00019206,2]
[391237008,1760424640817,-500.0,0.00019206,2]
[391237010,1760424640826,-500.0,0.00019206,2]
[391237012,1760424640835,-500.0,0.00019206,2]
[391237014,1760424640844,-500.0,0.00019206,2]
[391237016,1760424640853,-388.55,0.00019206,2]
[391237018,1760424640862,-300.0,0.00019486,2]
[391237020,1760424640872,-300.0,0.00019486,2]
[391237021,1760424640881,-300.0,0.00019486,2]
[391237022,1760424640890,-300.0,0.00019486,2]
[391237023,1760424640899,-300.0,0.00019486,2]
[391237024,1760424640909,-300.0,0.00019486,2]
[391237025,1760424640919,-300.0,0.00019486,2]
[391237026,1760424640928,-300.0,0.00019486,2]
[391237027,1760424640937,-300.0,0.00019486,2]
[391237028,1760424640947,-300.0,0.00019486,2]
[391237030,1760424640956,-300.0,0.00019486,2]
[391237031,1760424640966,-300.0,0.00019486,2]
[391237032,1760424640975,-300.0,0.00019486,2]
[391237033,1760424640984,-300.0,0.00019486,2]
[391237034,1760424640992,-300.0,0.00019486,2]
[391237035,1760424641002,-600.0,0.00019486,2]
[391237036,1760424641011,-172.5,0.00019702,2]
[391237037,1760424641021,-195.0,0.00020302,2]
[391237038,1760424641030,-420.0,0.0002082,2]
[391237039,1760424641040,-217.5,0.00020902,2]
[391237040,1760424641049,-171.0,0.00020921,2]
[391237041,1760424641061,-720.0,0.00021435,20]
[391237042,1760424641071,-206.0,0.00021479,4]
[391237043,1760424641080,-240.0,0.00021502,2]
[391237044,1760424641089,-28327.03,0.000221,7]
[391237045,1760424641098,-402.43064913,0.000221,7]
[391237046,1760424641107,-587.0,0.00022692,2]
[391237047,1760424641116,-12953.85801077,0.00022807,2]
[391237048,1760424641126,-250.0,0.00022807,2]
[391237049,1760424641136,-250.0,0.00022807,2]
[391237050,1760424641145,-250.0,0.00022807,2]
[391237051,1760424641155,-250.0,0.00022807,2]
[391237052,1760424641164,-250.0,0.00022807,2]
[391237053,1760424641173,-250.0,0.00022807,2]
[391237054,1760424641183,-250.0,0.00022807,2]
[391237055,1760424641192,-250.0,0.00022807,2]
[391237056,1760424641201,-250.0,0.00022807,2]
[391237057,1760424641210,-250.0,0.00022807,2]
[391237058,1760424641219,-250.0,0.00022807,2]
[391237059,1760424641228,-250.0,0.00022807,2]
[391237060,1760424641237,-250.0,0.00022807,2]
[391237061,1760424641246,-250.0,0.00022807,2]
[391237062,1760424641255,-250.0,0.00022807,2]
[391237063,1760424641263,-250.0,0.00022807,2]
[391237064,1760424641272,-250.0,0.00022807,2]
[391237065,1760424641281,-250.0,0.00022807,2]
[391237066,1760424641290,-250.0,0.00022807,2]
[391237067,1760424641299,-160.0,0.00023,2]
[391237068,1760424641310,-95000.0,0.00023288,30]
[391237069,1760424641324,-864.0,0.00023578,20]
[391237070,1760424641332,-531.16282242,0.00023815,2]
[391237071,1760424641342,-11734.53,0.00024,2]
[391237072,1760424641352,-239.77,0.000241,7]
[391237073,1760424641364,-200.0,0.0002451,7]
[391237074,1760424641373,-380.0,0.00024658,2]
[391237075,1760424641382,-184.70179692,0.00024703,2]
[391237076,1760424641391,-714.0,0.00024731,2]
[391237077,1760424641400,-175.0,0.00024767,14]
[391237078,1760424641409,-417.15472785,0.00024798,2]
[391237079,1760424641419,-402.43064913,0.00024798,2]
[391237080,1760424641427,-160.0,0.00024798,2]